bitfinex-derivatives/quotes_BTCF0:USTF0_20210111
["timestamp","ask_amount","ask_price","bid_price","bid_amount"]
[1610379151255,0.13632608,32337.0,32336.0,0.0862]
[1610379151455,0.13632608,32337.0,32329.0,0.02193]
[1610379151656,0.13632608,32337.0,32312.0,0.06667199]
[1610379151855,0.20918608,32337.0,32312.0,0.06667199]
[1610379153259,0.13632608,32319.0,32316.0,0.13632608]
[1610379153459,0.08591,32328.0,32312.0,0.06667199]
[1610379154258,0.08591,32328.0,32313.0,0.0938]
[1610379154457,0.08591,32328.0,32312.0,0.06667199]
[1610379155060,3.565,32317.0,32312.0,0.06667199]
[1610379155259,0.13632608,32313.0,32312.0,0.06667199]
[1610379155659,3.565,32317.0,32312.0,0.06667199]
[1610379156260,0.0919,32316.0,32312.0,0.06667199]
[1610379156463,0.0919,32316.0,32313.0,0.094]
[1610379156663,3.565,32317.0,32312.0,0.06667199]
[1610379157669,3.565,32317.0,32313.0,0.0929]
[1610379157866,4.1917,32319.0,32312.0,0.06667199]
[1610379159066,0.0938,32318.0,32313.0,0.0935]
[1610379159262,0.0938,32318.0,32312.0,0.06667199]
[1610379159263,4.1917,32319.0,32312.0,0.06667199]
[1610379160062,0.13632608,32313.0,32312.0,0.06667199]
[1610379160464,4.1917,32319.0,32312.0,0.06667199]
[1610379160465,0.09159,32314.0,32312.0,0.06667199]
[1610379160664,0.09159,32314.0,32312.0,0.15837199]
[1610379160865,0.09159,32314.0,32312.0,7.199e-05]
[1610379161066,0.08159,32314.0,32312.0,7.199e-05]
[1610379161268,0.0929,32313.0,32292.0,0.09253]
[1610379161665,0.08159,32314.0,32292.0,0.09253]
[1610379162067,0.08159,32314.0,32292.0,0.02983]
[1610379162270,0.13632608,32293.0,32292.0,3e-05]
[1610379162467,0.13632608,32293.0,32268.0,4.8664]
[1610379162666,0.11363,32297.0,32222.0,0.06712657]
[1610379162867,4.7103,32277.0,32222.0,0.16587657]
[1610379163067,4.6803,32277.0,32222.0,0.16587657]
[1610379163467,4.6803,32277.0,32223.0,0.094]
[1610379164268,4.6803,32277.0,32222.0,0.16587657]
[1610379164469,4.77958,32277.0,32222.0,0.16587657]
[1610379164869,4.77958,32277.0,32222.0,0.15687657]
[1610379165470,4.5113,32245.0,32222.0,0.15687657]
[1610379166269,0.13632608,32223.0,32222.0,0.15687657]
[1610379166471,4.5113,32245.0,32222.0,0.15687657]
[1610379166669,4.6035,32245.0,32222.0,0.15687657]
[1610379168471,0.0922,32245.0,32223.0,0.0917]
[1610379168674,0.093,32285.0,32223.0,0.0917]
[1610379168874,0.0941,32328.0,32223.0,0.0917]
[1610379169073,0.0931,32298.0,32223.0,0.0917]
[1610379169271,0.0941,32328.0,32223.0,0.0917]
[1610379169472,1.0,32420.0,32295.0,0.13632608]
[1610379169671,0.093,32419.0,32295.0,0.22898608]
[1610379169881,0.17598,32419.0,32295.0,0.22898608]
[1610379170683,0.17598,32419.0,32296.0,0.0928]
[1610379171475,0.17598,32419.0,32391.0,0.13632608]
[1610379171476,0.13632608,32395.0,32391.0,0.13632608]
[1610379171681,0.07037,32401.0,32391.0,0.13632608]
[1610379171875,0.07037,32401.0,32381.0,0.11029]
[1610379172693,0.0912,32400.0,32381.0,0.11029]
[1610379172883,0.0912,32400.0,32381.0,9e-05]
[1610379173089,1.0,32381.0,32295.0,0.09266]
[1610379173285,1.11161,32381.0,32295.0,0.09266]
[1610379173781,1.11161,32381.0,32296.0,0.0926]
[1610379173982,0.13632608,32315.0,32313.0,0.13632608]
[1610379174182,0.13632608,32315.0,32295.0,0.09266]
[1610379174381,0.08934,32341.0,32295.0,0.09266]
[1610379174780,0.08934,32341.0,32295.0,0.10048]
[1610379175181,0.0924,32340.0,32295.0,0.10048]
[1610379175980,0.13632608,32296.0,32295.0,0.10048]
[1610379176381,0.07969,32318.0,32295.0,0.10048]
[1610379176582,0.07838,32334.0,32295.0,0.10048]
[1610379178194,0.07638,32334.0,32295.0,0.10048]
[1610379178394,0.07638,32334.0,32316.0,0.13632608]
[1610379178588,0.07638,32334.0,32305.0,0.11361]
[1610379179797,0.07638,32334.0,32171.0,2.00161369]
[1610379179991,0.0917,32333.0,32232.0,0.0929]
[1610379180594,0.2889,32332.0,32208.0,0.0916]
[1610379180796,0.13632608,32265.0,32223.0,0.0931]
[1610379180987,0.13632608,32265.0,32214.0,0.0931]
[1610379181202,0.09056,32299.0,32208.0,0.0916]
[1610379181402,0.09409,32280.0,32268.0,0.13632608]
[1610379181800,0.09409,32280.0,32268.0,0.02332608]
[1610379182000,0.09409,32280.0,32136.0,2.00447171]
[1610379182196,0.09409,32280.0,32166.0,0.0938]
[1610379182804,0.09409,32280.0,32222.0,0.05812657]
[1610379182989,0.13632608,32223.0,32222.0,0.05812657]
[1610379183389,0.07586,32229.0,32222.0,0.05812657]
[1610379183589,0.07586,32229.0,32222.0,0.03272657]
[1610379183988,0.07586,32229.0,32222.0,2.657e-05]
[1610379184189,0.0931,32228.0,32200.0,0.09305]
[1610379184391,0.0931,32228.0,32122.0,0.0942]
[1610379184991,0.13632608,32179.0,32173.0,0.13632608]
[1610379185390,0.13632608,32179.0,32122.0,0.0942]
[1610379185590,0.08026,32202.0,32133.0,0.0938]
[1610379185791,0.08026,32202.0,32133.0,0.17611]
[1610379186092,0.08026,32202.0,32133.0,0.08231]
[1610379187293,0.0937,32201.0,32133.0,0.08231]
[1610379187495,0.13632608,32154.0,32146.0,0.13632608]
[1610379187693,0.13632608,32154.0,32133.0,0.08231]
[1610379188095,0.07337,32183.0,32133.0,0.08231]
[1610379188694,0.16727,32183.0,32133.0,0.08231]
[1610379189703,0.16727,32183.0,32133.0,1e-05]
[1610379190096,0.16727,32183.0,32133.0,0.0754]
[1610379191698,0.13632608,32134.0,32133.0,0.0754]
[1610379191899,0.08846,32147.0,32133.0,0.0754]
[1610379192300,0.08846,32147.0,32132.0,0.05049115]
[1610379192498,0.08846,32147.0,32003.0,2.01537317]
[1610379192699,0.08846,32147.0,32000.0,2.01898007]
[1610379193100,0.08846,32147.0,31995.0,2.01946573]
[1610379193401,0.0927,32146.0,31995.0,2.01946573]
[1610379193602,0.0927,32146.0,32040.0,0.093]
[1610379193803,0.13632608,32075.0,32040.0,0.093]
[1610379194205,0.0753,32083.0,32016.0,0.0933]
[1610379194406,0.09697,32075.0,32033.0,0.07388]
[1610379195004,0.093,32074.0,32033.0,0.00208]
[1610379195203,0.093,32074.0,32033.0,8e-05]
[1610379195603,0.093,32074.0,31976.0,0.0951]
[1610379195804,0.093,32074.0,31988.0,0.0948]
[1610379196204,0.093,32074.0,31979.0,0.0929]
[1610379196418,0.093,32074.0,31990.0,0.0932]
[1610379197014,0.13632608,32036.0,31990.0,0.0932]
[1610379197608,0.09553,32049.0,32001.0,0.01046]
[1610379197815,0.09553,32049.0,32004.0,1.31924]
[1610379198210,0.10327,32056.0,32004.0,1.31924]
[1610379198411,0.2973,32073.0,32004.0,1.31924]
[1610379199018,4.1184,32083.0,32004.0,1.31924]
[1610379199310,4.1343,32127.0,32009.0,5.0984]
[1610379200310,3.50211,32127.0,32126.0,0.13632608]
[1610379200514,1.0,32209.0,32126.0,0.13632608]
[1610379200711,1.0,32209.0,32126.0,0.10667]
[1610379201117,0.0933,32239.0,32126.0,0.10667]
[1610379201314,0.0916,32247.0,32126.0,0.10667]
[1610379201512,1.77131709,32332.0,32127.0,0.0946]
[1610379201713,1.77131709,32332.0,32126.0,0.10667]
[1610379201913,0.35529,32266.0,32126.0,0.10667]
[1610379202514,0.13632608,32243.0,32126.0,0.10667]
[1610379202712,0.21980608,32243.0,32126.0,0.10667]
[1610379202912,0.08348,32243.0,32126.0,0.10667]
[1610379203114,1.0,32235.0,32126.0,4.77037]
[1610379203313,1.09673,32235.0,32126.0,4.77037]
[1610379204314,1.09673,32235.0,32151.0,3.9457]
[1610379204517,1.09673,32235.0,32151.0,4.05214]
[1610379205116,0.09673,32235.0,32151.0,4.05214]
[1610379205315,0.09673,32235.0,32233.0,0.13632608]
[1610379206115,0.35529,32266.0,32233.0,0.13632608]
[1610379206317,0.35529,32266.0,32229.0,0.11247]
[1610379207315,0.35529,32266.0,32259.0,0.13632608]
[1610379208516,0.31769,32266.0,32259.0,0.13632608]
[1610379208717,1.0,32347.0,32259.0,0.09785]
[1610379208917,3.7067,32281.0,32259.0,0.09785]
[1610379209117,0.1556,32361.0,32259.0,0.09785]
[1610379209318,0.2835,32346.0,32259.0,0.09785]
[1610379209518,0.37293,32346.0,32259.0,0.09785]
[1610379210717,0.37293,32346.0,32260.0,0.094]
[1610379210918,0.37293,32346.0,32259.0,0.09785]
[1610379211317,0.37293,32346.0,32300.0,0.13632608]
[1610379211719,0.37293,32346.0,32289.0,0.09058]
[1610379213022,1.0,32317.0,32289.0,0.09058]
[1610379213222,1.08757,32317.0,32289.0,0.09058]
[1610379213423,1.08757,32317.0,32259.0,0.09785]
[1610379213824,1.08757,32317.0,32252.0,0.10729]
[1610379214025,1.08757,32317.0,32245.0,0.08516]
[1610379214224,1.08757,32317.0,32194.0,2.09888425]
[1610379214625,1.08757,32317.0,32191.0,2.10076687]
[1610379215026,0.08757,32317.0,32188.0,2.10094472]
[1610379215427,0.08757,32317.0,32184.0,2.10261827]
[1610379215635,0.13632608,32271.0,32257.0,0.13632608]
[1610379215830,0.23467608,32271.0,32180.0,2.10336493]
[1610379216227,0.23467608,32271.0,32175.0,2.10365154]
[1610379216627,0.09835,32271.0,32169.0,2.10595204]
[1610379217027,1.0,32239.0,32157.0,2.10660559]
[1610379217227,1.08157,32239.0,32157.0,2.10660559]
[1610379217428,1.08157,32239.0,32150.0,2.10893077]
[1610379217833,0.13632608,32162.0,32129.0,2.1101783]
[1610379218030,0.21833608,32162.0,32129.0,2.1101783]
[1610379218230,0.21833608,32162.0,32115.0,0.47591397]
[1610379218634,0.0968,32168.0,32088.0,2.1132145]
[1610379218830,0.0968,32168.0,32088.0,0.108]
[1610379219833,0.13632608,32151.0,32144.0,0.13632608]
[1610379220035,0.09454,32151.0,32144.0,0.13632608]
[1610379220639,0.09454,32151.0,32088.0,0.108]
[1610379221037,0.0968,32168.0,32088.0,0.108]
[1610379221437,0.0968,32168.0,32090.0,2.11611878]
[1610379221837,0.0968,32168.0,32088.0,0.108]
[1610379221838,0.0968,32168.0,32167.0,0.13632608]
[1610379222237,0.0968,32168.0,32152.0,0.09206]
[1610379222437,3.6017,32174.0,32152.0,0.09206]
[1610379223240,3.9448,32215.0,32152.0,0.09206]
[1610379223637,0.2874,32238.0,32158.0,3.5283]
[1610379223837,0.13632608,32258.0,32237.0,0.13632608]
[1610379224039,4.2447,32267.0,32237.0,0.13632608]
[1610379224438,4.2447,32267.0,32220.0,0.09124]
[1610379224639,0.35744,32254.0,32220.0,0.09124]
[1610379225238,0.33464,32254.0,32220.0,0.09124]
[1610379225437,0.30624,32254.0,32220.0,0.09124]
[1610379225638,0.27494,32254.0,32220.0,0.09124]
[1610379225941,0.27494,32254.0,32253.0,0.13632608]
[1610379226139,0.27494,32254.0,32231.0,0.0737]
[1610379227140,0.27494,32254.0,32220.0,0.09124]
[1610379227940,0.27494,32254.0,32253.0,0.13632608]
[1610379228140,0.27494,32254.0,32220.0,0.09124]
[1610379228548,0.30494,32254.0,32220.0,0.09124]
[1610379228940,0.30494,32254.0,32208.0,0.08076]
[1610379229342,0.30494,32254.0,32189.0,3.94]
[1610379230142,0.13632608,32250.0,32189.0,3.94]
[1610379231149,0.10414,32254.0,32189.0,3.94]
[1610379231545,0.10414,32254.0,32169.0,0.10902]
[1610379231744,0.10414,32254.0,32162.0,0.09482]
[1610379232746,0.10414,32254.0,32103.0,2.12755129]
[1610379232948,0.10414,32254.0,32094.0,2.12804234]
[1610379233145,1.0,32239.0,32094.0,2.12804234]
[1610379233348,1.0997,32239.0,32094.0,2.12804234]
[1610379233548,1.0997,32239.0,32092.0,2.13265818]
[1610379233850,1.0997,32239.0,32082.0,2.66582272]
[1610379233851,1.0997,32239.0,32083.0,2.13289666]
[1610379234248,1.0997,32239.0,32070.0,2.84386221]
[1610379234249,1.0997,32239.0,32081.0,2.1328231]
[1610379234648,1.0997,32239.0,32080.0,2.13608352]
[1610379235149,1.0997,32239.0,32133.0,0.13632608]
[1610379235150,1.0,32154.0,32133.0,0.13632608]
[1610379235350,1.1138,32154.0,32074.0,2.13880481]
[1610379236052,1.1138,32154.0,32068.0,2.13932472]
[1610379236453,1.1138,32154.0,32066.0,2.1412003]
[1610379236651,1.1138,32154.0,32066.0,3.6412003]
[1610379236852,1.1138,32154.0,32072.0,2.14084805]
[1610379237052,0.2788,32237.0,32073.0,1.5]
[1610379237254,0.2788,32237.0,32153.0,0.13632608]
[1610379237451,0.2788,32237.0,32153.0,0.09485]
[1610379239555,0.2788,32237.0,32203.0,0.13632608]
[1610379239756,0.2788,32237.0,32160.0,0.09168]
[1610379240756,0.2788,32237.0,32098.0,2.14897824]
[1610379241158,0.2788,32237.0,32095.0,2.15166723]
[1610379241558,0.2788,32237.0,32169.0,0.13632608]
[1610379241958,0.2788,32237.0,32130.0,0.08155]
[1610379242558,1.7788,32237.0,32130.0,0.08155]
[1610379242760,1.7788,32237.0,32081.0,2.15610885]
[1610379243159,1.0,32209.0,32078.0,2.15644681]
[1610379243359,1.07142,32209.0,32078.0,2.15644681]
[1610379243559,1.07142,32209.0,32072.0,2.2487286]
[1610379243760,1.07142,32209.0,32128.0,0.13632608]
[1610379243960,0.2769,32208.0,32128.0,0.13632608]
[1610379245762,0.2769,32208.0,32172.0,0.13632608]
[1610379246363,0.2769,32208.0,32137.0,0.09629]
[1610379247964,0.07142,32209.0,32203.0,0.13632608]
[1610379248363,0.2788,32237.0,32203.0,0.13632608]
[1610379248563,0.2788,32237.0,32174.0,0.11008]
[1610379250164,0.2788,32237.0,32236.0,0.13632608]
[1610379250766,0.2788,32237.0,32213.0,0.09085]
[1610379251366,0.2788,32237.0,32174.0,0.11008]
[1610379252167,0.2788,32237.0,32236.0,0.13632608]
[1610379254068,0.2788,32237.0,32209.0,0.07724]
[1610379254469,0.2788,32237.0,32171.0,4.9843]
[1610379256071,0.2788,32237.0,32212.0,0.13632608]
[1610379256072,0.13632608,32222.0,32212.0,0.13632608]
[1610379256271,0.21869608,32222.0,32212.0,0.13632608]
[1610379256870,0.21869608,32222.0,32171.0,4.9843]
[1610379256871,0.08237,32222.0,32171.0,4.9843]
[1610379257271,0.08237,32222.0,32171.0,5.0781]
[1610379257470,0.08237,32222.0,29012.0,0.08349151]
[1610379257672,0.08237,32222.0,32133.0,2.17738509]
[1610379258072,0.08237,32222.0,32130.0,2.17799111]
[1610379258473,0.13632608,32176.0,32163.0,0.13632608]
[1610379258673,0.23812608,32176.0,32128.0,0.0943]
[1610379258873,0.23812608,32176.0,32123.0,2.18833836]
[1610379259075,0.23812608,32176.0,32115.0,2.18892918]
[1610379259275,0.1018,32176.0,32115.0,2.18892918]
[1610379259475,0.1018,32176.0,32108.0,2.19591983]
[1610379259677,0.0936,32175.0,32108.0,2.19591983]
[1610379259876,0.0936,32175.0,32103.0,2.19618651]
[1610379260277,0.0936,32175.0,32099.0,2.19589091]
[1610379260676,0.0936,32175.0,32152.0,0.13632608]
[1610379260877,0.0936,32175.0,32120.0,0.07264]
[1610379262481,0.0936,32175.0,32087.0,2.38213343]
[1610379262482,0.0936,32175.0,32087.0,2.19743892]
[1610379262879,0.0936,32175.0,32084.0,0.0938]
[1610379263079,0.0936,32175.0,32081.0,2.19759609]
[1610379263283,0.0936,32175.0,32080.0,0.0936]
[1610379263480,0.0936,32175.0,32079.0,2.19850389]
[1610379263681,0.0936,32175.0,32076.0,2.19595309]
[1610379264082,0.0936,32175.0,32070.0,2.19711186]
[1610379264281,0.0936,32175.0,32068.0,2.19398213]
[1610379264681,0.0936,32175.0,32123.0,0.13632608]
[1610379265092,1.0,32135.0,32086.0,0.11239]
[1610379265285,1.10499,32135.0,32086.0,0.11239]
[1610379266083,1.10499,32135.0,32064.0,2.19224581]
[1610379266287,1.10499,32135.0,32060.0,2.1923311]
[1610379266702,1.10499,32135.0,32116.0,0.13632608]
[1610379267107,0.10499,32135.0,32116.0,0.13632608]
[1610379267884,0.10499,32135.0,32117.0,0.0921]
[1610379268084,1.0,32206.0,32117.0,0.16429]
[1610379268284,0.2855,32205.0,32118.0,0.0934]
[1610379268683,0.2855,32205.0,32118.0,1.5934]
[1610379269084,0.2855,32205.0,32204.0,0.13632608]
[1610379269484,0.08237,32222.0,32204.0,0.13442248]
[1610379269684,0.0997,32239.0,32204.0,0.13442248]
[1610379269884,0.0935,32269.0,32199.0,0.0999]
[1610379270284,0.0918,32258.0,32199.0,0.0999]
[1610379270484,0.0917,32309.0,32199.0,0.0999]
[1610379270684,1.43807887,32293.0,32200.0,0.094]
[1610379270884,1.43807887,32293.0,32199.0,0.0999]
[1610379271085,0.09946,32254.0,32199.0,0.0999]
[1610379273086,0.13632608,32228.0,32211.0,0.13632608]
[1610379273285,0.24467608,32228.0,32211.0,0.13632608]
[1610379273886,0.24467608,32228.0,32199.0,0.0999]
[1610379274286,0.10835,32228.0,32199.0,0.0999]
[1610379274486,0.10835,32228.0,32189.0,0.06959]
[1610379274686,0.0938,32227.0,32143.0,2.20541281]
[1610379274887,0.0938,32227.0,32140.0,2.38919721]
[1610379275088,0.13632608,32173.0,32153.0,0.13632608]
[1610379275288,1.0,32190.0,32125.0,2.21087066]
[1610379275485,1.0,32190.0,32125.0,2.29662066]
[1610379275686,1.0,32190.0,32125.0,0.08575]
[1610379277087,0.08938,32191.0,32125.0,0.08575]
[1610379277891,0.13632608,32171.0,32165.0,0.13632608]
[1610379278088,0.08938,32191.0,32165.0,0.13632608]
[1610379278290,0.08938,32191.0,32165.0,0.24907608]
[1610379279089,0.08938,32191.0,32165.0,0.11275]
[1610379279289,3.5208,32205.0,32165.0,0.11275]
[1610379280490,3.5208,32205.0,32204.0,0.13632608]
[1610379280890,3.5208,32205.0,32181.0,0.0908]
[1610379281090,3.62823,32205.0,32181.0,0.0908]
[1610379281690,3.62823,32205.0,32165.0,0.11275]
[1610379282396,3.62823,32205.0,32204.0,0.13632608]
[1610379282592,3.62823,32205.0,32165.0,0.11275]
[1610379282803,3.62823,32205.0,32172.0,0.09495]
[1610379284093,0.10743,32205.0,32172.0,0.09495]
[1610379284293,0.2856,32243.0,32172.0,0.09495]
[1610379284492,0.2856,32243.0,32172.0,0.18925]
[1610379285094,0.2856,32243.0,32234.0,0.13632608]
[1610379285496,0.2856,32243.0,32195.0,0.10318]
[1610379285694,0.36017,32243.0,32195.0,0.10318]
[1610379286694,0.36017,32243.0,32172.0,0.18925]
[1610379286898,0.36017,32243.0,32172.0,0.09495]
[1610379287496,1.02067,32243.0,32172.0,0.09495]
[1610379287696,1.02067,32243.0,32168.0,3.9502]
[1610379288498,1.5,32242.0,32168.0,3.9502]
[1610379288698,0.01,32172.0,32168.0,3.9502]
[1610379289099,0.01,32172.0,32128.0,3.6616]
[1610379289499,0.02,32168.0,32128.0,3.6616]
[1610379290703,0.02,32168.0,32129.0,0.0942]
[1610379292301,0.02,32168.0,32129.0,2.32138057]
[1610379292701,0.02,32168.0,32128.0,3.6616]
[1610379292702,0.02,32168.0,32131.0,2.22781777]
[1610379292901,0.0928,32167.0,32131.0,2.22781777]
[1610379293100,0.20587,32167.0,32128.0,3.6616]
[1610379293306,0.11307,32167.0,32128.0,3.6616]
[1610379293502,0.02,32129.0,32128.0,3.6616]
[1610379294603,0.02,32129.0,32128.0,3.79792608]
[1610379294804,0.02,32129.0,32128.0,3.6616]
[1610379297104,0.11307,32167.0,32128.0,3.6616]
[1610379297306,0.11307,32167.0,32166.0,0.13632608]
[1610379297506,0.11307,32167.0,32143.0,0.11231]
[1610379297706,0.02,32168.0,32143.0,0.11231]
[1610379298508,0.02,32168.0,32143.0,3.64371]
[1610379298706,4.7014,32211.0,32143.0,5.14371]
[1610379299609,4.7014,32211.0,32143.0,3.64371]
[1610379299809,0.13632608,32203.0,32201.0,0.13632608]
[1610379300012,4.7014,32211.0,32168.0,0.08597]
[1610379300208,0.39065,32202.0,32168.0,0.08597]
[1610379301011,0.39065,32202.0,32143.0,3.64371]
[1610379302012,0.39065,32202.0,32164.0,0.13632608]
[1610379303012,0.39065,32202.0,32143.0,3.5314]
[1610379303412,1.98385,32202.0,32143.0,3.5314]
[1610379304613,0.13632608,32144.0,32143.0,3.5314]
[1610379304813,0.23620608,32144.0,32143.0,3.5314]
[1610379305213,0.09988,32144.0,32143.0,3.5314]
[1610379306017,0.09988,32144.0,32143.0,3.5231]
[1610379306218,0.09988,32144.0,32083.0,2.41242572]
[1610379306219,0.09988,32144.0,32083.0,2.22709945]
[1610379306417,0.09988,32144.0,32078.0,2.22635027]
[1610379306616,0.13632608,32103.0,32096.0,0.13632608]
[1610379306817,0.23210608,32103.0,32096.0,0.13632608]
[1610379307016,0.09578,32103.0,32070.0,2.22672704]
[1610379307217,0.09578,32103.0,32066.0,2.22670127]
[1610379307617,0.09578,32103.0,32064.0,2.22479827]
[1610379308018,0.09578,32103.0,32063.0,2.22504604]
[1610379308217,0.09027,32110.0,32064.0,0.093]
[1610379308418,0.1003,32132.0,32064.0,0.17593]
[1610379308623,0.13632608,32113.0,32101.0,0.13632608]
[1610379308822,0.07028,32117.0,32070.0,0.0937]
[1610379309218,0.07028,32117.0,32070.0,2.31618238]
[1610379309918,0.1003,32132.0,32070.0,2.31618238]
[1610379310319,0.1003,32132.0,32070.0,0.0937]
[1610379310519,0.1003,32132.0,32112.0,0.13632608]
[1610379310920,0.1003,32132.0,32089.0,0.08864]
[1610379311122,3.7041,32122.0,32117.0,0.01]
[1610379311323,3.81348,32122.0,32064.0,0.08293]
[1610379311720,0.2902,32121.0,32044.0,2.78073194]
[1610379311921,0.2902,32121.0,32043.0,2.4107017]
[1610379312120,0.2902,32121.0,32033.0,2.96701748]
[1610379312121,0.2902,32121.0,32030.0,2.41115504]
[1610379312319,0.3839,32121.0,32030.0,2.41115504]
[1610379312519,0.3839,32121.0,32020.0,2.4074783]
[1610379312820,0.13632608,32046.0,32020.0,2.4074783]
[1610379313022,0.13632608,32046.0,32007.0,3.14824085]
[1610379313023,0.12632608,32046.0,32012.0,2.40780593]
[1610379313420,0.10288,32075.0,32006.0,2.40958239]
[1610379313619,0.10288,32075.0,32006.0,2.49464239]
[1610379313820,0.10288,32075.0,32006.0,0.08506]
[1610379314021,0.0934,32074.0,32006.0,0.08506]
[1610379314821,0.282,32073.0,32006.0,0.08506]
[1610379315021,0.272,32073.0,32006.0,0.08506]
[1610379315220,0.13632608,32007.0,32006.0,0.08506]
[1610379315420,0.11247,32044.0,32006.0,0.08506]
[1610379316020,0.272,32073.0,32007.0,0.0939]
[1610379316421,0.252,32073.0,32007.0,0.0939]
[1610379316820,0.222,32073.0,32007.0,0.0939]
[1610379317222,0.1282,32073.0,32072.0,0.13632608]
[1610379317423,0.0337,32073.0,32072.0,0.24448608]
[1610379317622,4.44,32117.0,32072.0,0.24448608]
[1610379318022,4.44,32117.0,32072.0,0.10816]
[1610379318223,0.2915,32120.0,32072.0,0.10816]
[1610379319227,0.2915,32120.0,32119.0,0.13632608]
[1610379319422,0.3861,32120.0,32119.0,0.24059608]
[1610379319624,0.3861,32120.0,32119.0,0.10427]
[1610379319823,0.2915,32120.0,32119.0,0.10427]
[1610379321123,0.2436,32120.0,32119.0,0.10427]
[1610379321322,4.9088,32144.0,32119.0,0.10427]
[1610379322524,4.9088,32144.0,32143.0,0.13632608]
[1610379322824,4.9088,32144.0,32137.0,0.09284]
[1610379325627,0.13632608,32146.0,32143.0,0.13632608]
[1610379326028,0.08978,32160.0,32137.0,0.09284]
[1610379327430,0.2489,32178.0,32137.0,0.09284]
[1610379327629,0.1556,32178.0,32177.0,0.13632608]
[1610379328229,0.1556,32178.0,32177.0,0.0935]
[1610379328430,0.1556,32221.0,32166.0,0.10767]
[1610379329029,1.0,32218.0,32166.0,0.10767]
[1610379329230,3.4502,32192.0,32166.0,0.10767]
[1610379329429,1.0,32218.0,32166.0,0.10767]
[1610379330232,1.0,32218.0,32207.0,0.13632608]
[1610379330832,1.0,32218.0,32193.0,0.11242]
[1610379331033,0.07989,32218.0,32193.0,0.11242]
[1610379332433,0.07989,32218.0,32217.0,0.13632608]
[1610379332634,0.07989,32218.0,32201.0,0.10639]
[1610379333035,0.2708,32222.0,32201.0,0.10639]
[1610379334037,0.0348,32222.0,32201.0,0.10639]
[1610379334237,3.6293,32258.0,32201.0,0.10639]
[1610379334437,0.13632608,32265.0,32221.0,0.13632608]
[1610379334639,0.0919,32273.0,32221.0,0.24542608]
[1610379334839,0.0919,32273.0,32221.0,4.9285]
[1610379335440,1.0,32290.0,32221.0,4.9285]
[1610379335640,0.1556,32271.0,32222.0,0.0918]
[1610379336041,1.0,32290.0,32222.0,0.0918]
[1610379336842,1.0,32290.0,32283.0,0.13632608]
[1610379337041,4.1,32309.0,32283.0,0.13632608]
[1610379337242,4.1,32309.0,32261.0,0.09669]
[1610379337444,4.19748,32309.0,32261.0,0.09669]
[1610379338045,4.19748,32309.0,32262.0,0.0915]
[1610379338842,4.19748,32309.0,32308.0,0.13632608]
[1610379339443,0.09748,32309.0,32286.0,0.08381]
[1610379340047,0.09748,32309.0,32261.0,0.09669]
[1610379340844,0.13632608,32306.0,32286.0,0.13632608]
[1610379341244,1.09748,32309.0,32263.0,0.0104]
[1610379342856,0.13632608,32287.0,32269.0,0.13632608]
[1610379343046,0.09217,32287.0,32269.0,0.13632608]
[1610379343661,0.09217,32287.0,32263.0,0.0104]
[1610379344747,0.00117,32287.0,32263.0,0.0104]
[1610379344945,0.06987,32294.0,32286.0,0.13632608]
[1610379345945,0.09748,32309.0,32286.0,0.13632608]
[1610379346146,0.2902,32331.0,32286.0,0.13632608]
[1610379346945,0.2902,32331.0,32310.0,0.13632608]
[1610379347146,0.2902,32331.0,32273.0,0.07651]
[1610379347345,0.38048,32331.0,32282.0,4.7864]
[1610379347948,0.38048,32331.0,32282.0,4.88682]
[1610379348949,0.38048,32331.0,32318.0,0.13632608]
[1610379349751,0.38048,32331.0,32289.0,0.0776]
[1610379349951,0.15948,32331.0,32289.0,0.0776]
[1610379350952,0.09028,32331.0,32330.0,0.13632608]
[1610379351952,0.06028,32331.0,32330.0,0.13632608]
[1610379352152,0.57228,32355.0,32307.0,0.10551]
[1610379352353,1.0,32362.0,32307.0,0.10551]
[1610379352552,1.0,32362.0,32307.0,0.19811]
[1610379353753,1.0,32362.0,32311.0,5.1698]
[1610379354354,5.1052,32403.0,32311.0,5.1698]
[1610379354954,5.1052,32403.0,32311.0,5.2633]
[1610379355355,0.13632608,32377.0,32356.0,0.13632608]
[1610379355554,0.24433608,32377.0,32356.0,0.13632608]
[1610379356557,0.0923,32376.0,32356.0,0.13632608]
[1610379356757,0.0923,32376.0,32356.0,0.22772608]
[1610379357459,0.0932,32381.0,32375.0,0.13632608]
[1610379357661,0.0917,32385.0,32374.0,0.08397]
[1610379357858,0.10926,32395.0,32374.0,0.08397]
[1610379358064,0.2774,32463.0,32374.0,0.08397]
[1610379358457,1.0,32447.0,32374.0,0.08397]
[1610379358658,1.0,32447.0,32375.0,0.0915]
[1610379358857,0.0916,32446.0,32375.0,0.0915]
[1610379359057,0.16356,32446.0,32375.0,0.0915]
[1610379359659,0.07196,32446.0,32375.0,0.0915]
[1610379361461,0.13632608,32403.0,32399.0,0.13632608]
[1610379361661,0.13632608,32403.0,32374.0,0.08397]
[1610379362662,0.0916,32402.0,32375.0,0.0926]
[1610379363664,0.08258,32408.0,32375.0,0.0926]
[1610379363864,0.00858,32408.0,32375.0,0.17661]
[1610379364065,0.13632608,32434.0,32407.0,0.13632608]
[1610379364264,0.1556,32529.0,32407.0,0.13632608]
[1610379364465,1.0,32448.0,32407.0,0.13632608]
[1610379364865,0.0915,32443.0,32398.0,0.10996]
[1610379365866,1.0,32448.0,32355.0,0.0926]
[1610379366069,0.13632608,32412.0,32410.0,0.13632608]
[1610379366266,0.24788608,32412.0,32355.0,0.0926]
[1610379366469,0.11156,32412.0,32355.0,0.0926]
[1610379366667,0.11156,32412.0,32375.0,0.73311]
[1610379367869,0.0919,32411.0,32375.0,0.73311]
[1610379368069,0.13632608,32376.0,32375.0,0.73311]